Workbook

Sheet Cover
A3: Navigator
C5: =Client_Name -> SumProduct Pty Ltd
C6: =Model_Name -> SP Debt Sculpting Example.xlsm
C14: Primary Developer: Liam Bastick
C16: General Cover Notes:
C17: Illustrative debt sculpting examples using DSCR, PLCR and LLCR techniques.
C18: No macros equired!
C21: Any queries, please e-mail: | G21: liam.bastick@sumproduct.com
C22: Website: | G22: www.sumproduct.com

Sheet Navigator
A1: Navigator
A2: =Model_Name -> SP Debt Sculpting Example.xlsm
A3: Navigator
E4: Error Checks: | G4: =Overall_Error_Check -> 0
B7: 1 | C7: Table of Contents
F9: Cover
F10: Style Guide
F11: Model Parameters
F12: Debt Sculpting Example
F13: Lookup Data
F14: Timing
F15: Error Checks
F16: Change Log

Sheet Style Guide
A1: =IF(ISERROR(RIGHT(CELL("filename",A1),LEN(CELL("filename",A1))-FIND("]",CELL("filename",A1)))), "", RIGHT(CELL("filename",A1),LEN(CELL("filename",A1))-FIND("]",CELL("filename",A1)))) -> Style Guide
A2: =Model_Name -> SP Debt Sculpting Example.xlsm
A3: Navigator
E4: Error Checks: | I4: =Overall_Error_Check -> 0
B6: =MAX($B$5:$B5)+1 -> 1 | C6: Formatting of Headers / Dividers
C8: Description | I8: Display | K8: Style Name
C10: Sheet Title | I10: =C10 -> Sheet Title | K10: Sheet Title
C11: Model Name | I11: =C11 -> Model Name | K11: Model Name
C13: Header 1 | I13: =C13 -> Header 1 | K13: Header 1
C14: Header 2 | I14: =C14 -> Header 2 | K14: Header 2
C15: Header 3 | I15: =C15 -> Header 3 | K15: Header 3
C16: Header 4 | I16: =C16 -> Header 4 | K16: Header 4
C18: Notes | I18: =C18 -> Notes | K18: Notes
C20: Table Heading | I20: =C20 -> Table Heading | K20: Table Heading
B23: =MAX($B$5:$B22)+1 -> 2 | C23: Individual Cell Styles
C25: Description | I25: Display | K25: Style Name
C27: Assumption | I27: Assumption | K27: =C27 -> Assumption
C29: Constraint | I29: =C29 -> Constraint | K29: =C29 -> Constraint
C31: Empty | K31: =C31 -> Empty
C33: Error Check | I33: 0 | K33: =C33 -> Error Check
C35: Hyperlink | I35: Hyperlink | K35: =C35 -> Hyperlink
C37: Internal Reference | I37: ='Error Checks'!E12 -> PLCR selected: Loan repaid in time | K37: =C37 -> Internal Reference
C39: Line Calculation | I39: 77 | K39: Line Calc
C41: Line Total | I41: =I39 -> 77 | K41: =C41 -> Line Total
C43: Parameter | I43: 365 | K43: =C43 -> Parameter
C45: Range Name Description | I45: Not_Named | K45: =C45 -> Range Name Description
C47: Row Reference | I47: =ROW(C47) -> 47 | K47: Row Ref
C49: Row Summary | I49: =I41 -> 77 | K49: =C49 -> Row Summary
C51: Units | I51: A$ | K51: =C51 -> Units
C53: WIP | K53: =C53 -> WIP
B56: =MAX($B$5:$B55)+1 -> 3 | C56: Numerical Styles
C58: Description | I58: Display | K58: Style Name
C60: Comma | I60: 123456.789 | K60: =C60 -> Comma
C62: Comma [0] | I62: -123456.789 | K62: Comma [0]
C64: Currency | I64: 123456.789 | K64: Currency
C66: Currency [0] | I66: 123456.789 | K66: Currency [0]
C68: Date | I68: =TODAY() -> 2017-01-04 | K68: =C68 -> Date
C70: Date Heading | I70: =TODAY() -> 2017-01-04 | K70: =C70 -> Date Heading
C72: Numbers 0 | I72: -123456.789 | K72: =C72 -> Numbers 0
C74: Percent | I74: 0.5 | K74: =C74 -> Percent

Sheet Model Parameters
A1: =IF(ISERROR(RIGHT(CELL("filename",A1),LEN(CELL("filename",A1))-FIND("]",CELL("filename",A1)))), "", RIGHT(CELL("filename",A1),LEN(CELL("filename",A1))-FIND("]",CELL("filename",A1)))) -> Model Parameters
A2: =Model_Name -> SP Debt Sculpting Example.xlsm
A3: Navigator
E4: Error Checks: | I4: =Overall_Error_Check -> 0
B6: =MAX($B$5:$B5)+1 -> 1 | C6: General
C8: Key Inputs
E10: General
E11: Model Name | G11: =IF(ISERROR(OR(FIND("[",CELL("filename",A1)),FIND("]",CELL("filename",A1)))),"",MID(CELL("filename",A1),FIND("[",CELL("filename",A1))+1,FIND("]",CELL("filename",A1))-FIND("[",CELL("filename",A1))-1)) -> SP Debt Sculpting Example.xlsm
E12: Client Name | G12: SumProduct Pty Ltd
B15: =MAX($B$5:$B14)+1 -> 2 | C15: General Range Names
C17: Technical Assumptions
E19: Days in Year | G19: 365
E20: Months in Month | G20: 1
E21: Months in Quarter | G21: 3
E22: Months in Half Yr | G22: 6
E23: Months in Year | G23: 12
E24: Quarters in Year | G24: 4
E26: Rounding Accuracy | G26: 5
E28: Very Large Number | G28: 1e+99
E29: Very Small Number | G29: 1e-08
E31: Thousand | G31: 1000
E33: Currency | G33: $'000

Sheet Debt Sculpting Example
A1: =IF(ISERROR(RIGHT(CELL("filename",A1),LEN(CELL("filename",A1))-FIND("]",CELL("filename",A1)))), "", RIGHT(CELL("filename",A1),LEN(CELL("filename",A1))-FIND("]",CELL("filename",A1)))) -> Debt Sculpting Example
A2: =Model_Name -> SP Debt Sculpting Example.xlsm
A3: Navigator
B4: Error Checks: | G4: =Overall_Error_Check -> 0
J5: =Timing!J5 -> 2018-12-31 | K5: =Timing!K5 -> 2019-12-31 | L5: =Timing!L5 -> 2020-12-31 | M5: =Timing!M5 -> 2021-12-31 | N5: =Timing!N5 -> 2022-12-31
C6: =Timing!C6 -> Start Date | J6: =Timing!J6 -> 2018-01-01 | K6: =Timing!K6 -> 2019-01-01 | L6: =Timing!L6 -> 2020-01-01 | M6: =Timing!M6 -> 2021-01-01 | N6: =Timing!N6 -> 2022-01-01
C7: =Timing!C7 -> End Date | J7: =Timing!J7 -> 2018-12-31 | K7: =Timing!K7 -> 2019-12-31 | L7: =Timing!L7 -> 2020-12-31 | M7: =Timing!M7 -> 2021-12-31 | N7: =Timing!N7 -> 2022-12-31
C8: =Timing!C8 -> Number of Days | J8: =Timing!J8 -> 365 | K8: =Timing!K8 -> 365 | L8: =Timing!L8 -> 366 | M8: =Timing!M8 -> 365 | N8: =Timing!N8 -> 365
C9: =Timing!C9 -> Counter | J9: =Timing!J9 -> 1 | K9: =Timing!K9 -> 2 | L9: =Timing!L9 -> 3 | M9: =Timing!M9 -> 4 | N9: =Timing!N9 -> 5
B11: =MAX($B$10:$B10)+1 -> 1 | C11: Cash Flow Statement
C13: =C11 -> Cash Flow Statement
D15: From Accounting / Financial Modelling
E17: Operating Activities
F19: Cash Receipts | G19: =Currency -> $'000 | J19: 80 | K19: 90 | L19: 100 | M19: 110 | N19: 120
F20: Cash Payments | G20: =Currency -> $'000 | J20: -43 | K20: -49 | L20: -57 | M20: -64 | N20: -69
F21: Interest Paid | G21: =Currency -> $'000 | H21: =ROW(I510) -> 510 | J21: =-J510 -> -4.8 | K21: =-K510 -> -1.95808 | L21: -1.161395413 | M21: -0.4372089756 | N21: 0
F22: Tax Paid | G22: =Currency -> $'000 | H22: =ROW(I149) -> 149 | J22: =-J149 -> -7.452 | K22: =-K149 -> -9.207248 | L22: -8.693047403 | M22: -7.849605347 | N22: -9.467147155
F24: ="Net Cashflows from "&E17 -> Net Cashflows from Operating Activities | G24: =Currency -> $'000 | J24: =SUM(J19:J22) -> 24.748 | K24: =SUM(K19:K22) -> 29.834672 | L24: 33.14555718 | M24: 37.71318568 | N24: 41.53285285
E27: Investing Activities
F29: Interest Received | G29: =Currency -> $'000 | H29: =ROW(I107) -> 107 | J29: =J107 -> 0.14 | K29: =K107 -> 1.648906667 | L29: 0.8882200889 | M29: 0.6025601325 | N29: 0.557157182
F30: Net Capital Expenditure | G30: =Currency -> $'000 | J30: -30 | K30: -10 | L30: -15 | M30: -25 | N30: -30
F32: ="Net Cashflows from "&E27 -> Net Cashflows from Investing Activities | G32: =Currency -> $'000 | J32: =SUM(J29:J30) -> -29.86 | K32: =SUM(K29:K30) -> -8.351093333 | L32: -14.11177991 | M32: -24.39743987 | N32: -29.44284282
E35: Financing Activities
F37: Debt Drawdowns | G37: =Currency -> $'000 | J37: 80
F38: Debt Repayments | G38: =Currency -> $'000 | H38: =ROW(I501) -> 501 | J38: =-J501 -> -47.36533333 | K38: =-K501 -> -13.27807644 | L38: -12.06977396 | M38: -7.286816261 | N38: 0
F39: Equity Issuances | G39: =Currency -> $'000 | J39: 0 | K39: 0 | L39: 0 | M39: 0 | N39: 0
F40: Equity Buybacks | G40: =Currency -> $'000 | J40: 0 | K40: 0 | L40: 0 | M40: 0 | N40: 0
F41: Dividends Paid | G41: =Currency -> $'000 | J41: -1.8 | K41: 0 | L41: -2.4 | M41: -2.6 | N41: -2.8
F43: ="Net Cashflows from "&E35 -> Net Cashflows from Financing Activities | G43: =Currency -> $'000 | J43: =SUM(J38:J41)+IF(J$9=1,J37,) -> 30.83466667 | K43: =SUM(K38:K41)+IF(K$9=1,K37,) -> -13.27807644 | L43: -14.46977396 | M43: -9.886816261 | N43: -2.8
E45: Cash Flow Movement for the Period | G45: =Currency -> $'000 | J45: =J24+J32+J43 -> 25.72266667 | K45: =K24+K32+K43 -> 8.205502222 | L45: 4.564003311 | M45: 3.428929549 | N45: 9.290010027
B48: =MAX($B$10:$B47)+1 -> 2 | C48: Depreciation
C50: =C48 -> Depreciation
D52: Assumptions
E54: Straight Line, Full Depreciation in Period of Acquisition, No Opening Balance
E56: Periodic Rate | G56: % | H56: 0.25
D59: Referred Values
E61: =F30 -> Net Capital Expenditure | G61: =Currency -> $'000 | H61: =ROW(F30) -> 30 | J61: =-J30 -> 30 | K61: =-K30 -> 10 | L61: 15 | M61: 25 | N61: 30
D64: Calculations
E66: =OFFSET($I$5,,ROWS($D$66:$D66)) -> 2018-12-31 | G66: =Currency -> $'000 | H66: =OFFSET($I$61,,ROWS($D$66:$D66)) -> 30 | J66: =IF(J$9>=ROWS($D$66:$D66),MIN($H66*$H$56,$H66-SUM($I66:I66)),) -> 7.5 | K66: =IF(K$9>=ROWS($D$66:$D66),MIN($H66*$H$56,$H66-SUM($I66:J66)),) -> 7.5 | L66: =IF(L$9>=ROWS($D$66:$D66),MIN($H66*$H$56,$H66-SUM($I66:K66)),) -> 7.5 | M66: =IF(M$9>=ROWS($D$66:$D66),MIN($H66*$H$56,$H66-SUM($I66:L66)),) -> 7.5 | N66: =IF(N$9>=ROWS($D$66:$D66),MIN($H66*$H$56,$H66-SUM($I66:M66)),) -> 0
E67: =OFFSET($I$5,,ROWS($D$66:$D67)) -> 2019-12-31 | G67: =Currency -> $'000 | H67: =OFFSET($I$61,,ROWS($D$66:$D67)) -> 10 | J67: =IF(J$9>=ROWS($D$66:$D67),MIN($H67*$H$56,$H67-SUM($I67:I67)),) -> 0 | K67: =IF(K$9>=ROWS($D$66:$D67),MIN($H67*$H$56,$H67-SUM($I67:J67)),) -> 2.5 | L67: =IF(L$9>=ROWS($D$66:$D67),MIN($H67*$H$56,$H67-SUM($I67:K67)),) -> 2.5 | M67: =IF(M$9>=ROWS($D$66:$D67),MIN($H67*$H$56,$H67-SUM($I67:L67)),) -> 2.5 | N67: =IF(N$9>=ROWS($D$66:$D67),MIN($H67*$H$56,$H67-SUM($I67:M67)),) -> 2.5
E68: =OFFSET($I$5,,ROWS($D$66:$D68)) -> 2020-12-31 | G68: =Currency -> $'000 | H68: =OFFSET($I$61,,ROWS($D$66:$D68)) -> 15 | J68: =IF(J$9>=ROWS($D$66:$D68),MIN($H68*$H$56,$H68-SUM($I68:I68)),) -> 0 | K68: =IF(K$9>=ROWS($D$66:$D68),MIN($H68*$H$56,$H68-SUM($I68:J68)),) -> 0 | L68: =IF(L$9>=ROWS($D$66:$D68),MIN($H68*$H$56,$H68-SUM($I68:K68)),) -> 3.75 | M68: =IF(M$9>=ROWS($D$66:$D68),MIN($H68*$H$56,$H68-SUM($I68:L68)),) -> 3.75 | N68: =IF(N$9>=ROWS($D$66:$D68),MIN($H68*$H$56,$H68-SUM($I68:M68)),) -> 3.75
E69: =OFFSET($I$5,,ROWS($D$66:$D69)) -> 2021-12-31 | G69: =Currency -> $'000 | H69: =OFFSET($I$61,,ROWS($D$66:$D69)) -> 25 | J69: =IF(J$9>=ROWS($D$66:$D69),MIN($H69*$H$56,$H69-SUM($I69:I69)),) -> 0 | K69: =IF(K$9>=ROWS($D$66:$D69),MIN($H69*$H$56,$H69-SUM($I69:J69)),) -> 0 | L69: =IF(L$9>=ROWS($D$66:$D69),MIN($H69*$H$56,$H69-SUM($I69:K69)),) -> 0 | M69: =IF(M$9>=ROWS($D$66:$D69),MIN($H69*$H$56,$H69-SUM($I69:L69)),) -> 6.25 | N69: =IF(N$9>=ROWS($D$66:$D69),MIN($H69*$H$56,$H69-SUM($I69:M69)),) -> 6.25
E70: =OFFSET($I$5,,ROWS($D$66:$D70)) -> 2022-12-31 | G70: =Currency -> $'000 | H70: =OFFSET($I$61,,ROWS($D$66:$D70)) -> 30 | J70: =IF(J$9>=ROWS($D$66:$D70),MIN($H70*$H$56,$H70-SUM($I70:I70)),) -> 0 | K70: =IF(K$9>=ROWS($D$66:$D70),MIN($H70*$H$56,$H70-SUM($I70:J70)),) -> 0 | L70: =IF(L$9>=ROWS($D$66:$D70),MIN($H70*$H$56,$H70-SUM($I70:K70)),) -> 0 | M70: =IF(M$9>=ROWS($D$66:$D70),MIN($H70*$H$56,$H70-SUM($I70:L70)),) -> 0 | N70: =IF(N$9>=ROWS($D$66:$D70),MIN($H70*$H$56,$H70-SUM($I70:M70)),) -> 7.5
E72: =C48 -> Depreciation | G72: =Currency -> $'000 | J72: =SUM(J66:J70) -> 7.5 | K72: =SUM(K66:K70) -> 10 | L72: 13.75 | M72: 20 | N72: 20
B75: =MAX($B$10:$B74)+1 -> 3 | C75: =F29 -> Interest Received
C77: =C75 -> Interest Received
D79: Assumptions
E81: Operating / investing cash assumed to accrue evenly throughout period; financing inflows at beginning of period and outflows (interest paid) at end of period
E83: Periodic Rate | G83: % | H83: 0.04
D86: Referred Values
E88: Opening Balance | G88: =Currency -> $'000 | H88: =ROW(I45) -> 45 | J88: =I45 -> 0 | K88: =J45 -> 25.72266667 | L88: 8.205502222 | M88: 4.564003311 | N88: 3.428929549
E90: =F19 -> Cash Receipts | G90: =Currency -> $'000 | H90: =ROW(I19) -> 19 | J90: =J19 -> 80 | K90: =K19 -> 90 | L90: 100 | M90: 110 | N90: 120
E91: =F20 -> Cash Payments | G91: =Currency -> $'000 | H91: =ROW(I20) -> 20 | J91: =J20 -> -43 | K91: =K20 -> -49 | L91: -57 | M91: -64 | N91: -69
E92: =F30 -> Net Capital Expenditure | G92: =Currency -> $'000 | H92: =ROW(I22) -> 22 | J92: =J30 -> -30 | K92: =K30 -> -10 | L92: =L30 -> -15 | M92: =M30 -> -25 | N92: =N30 -> -30
E93: Subtotal | G93: =Currency -> $'000 | J93: =SUM(J90:J92) -> 7 | K93: =SUM(K90:K92) -> 31 | L93: 28 | M93: 21 | N93: 21
E95: Average Relevant Period Cashflows | G95: =Currency -> $'000 | J95: =J93/2 -> 3.5 | K95: =K93/2 -> 15.5 | L95: 14 | M95: 10.5 | N95: 10.5
D98: Calculations
E100: =E88 -> Opening Balance | G100: =Currency -> $'000 | J100: =J88 -> 0 | K100: =K88 -> 25.72266667 | L100: =L88 -> 8.205502222 | M100: =M88 -> 4.564003311 | N100: =N88 -> 3.428929549
E101: =E95 -> Average Relevant Period Cashflows | G101: =Currency -> $'000 | J101: =J95 -> 3.5 | K101: =K95 -> 15.5 | L101: 14 | M101: 10.5 | N101: 10.5
E103: Average Cash Deposit | G103: =Currency -> $'000 | J103: =MAX(SUM(J100:J101),) -> 3.5 | K103: =MAX(SUM(K100:K101),) -> 41.22266667 | L103: 22.20550222 | M103: 15.06400331 | N103: 13.92892955
E105: =E83 -> Periodic Rate | G105: % | J105: =$H$83 -> 0.04 | K105: =$H$83 -> 0.04 | L105: 0.04 | M105: 0.04 | N105: 0.04
E107: =C75 -> Interest Received | G107: =Currency -> $'000 | J107: =J103*J105 -> 0.14 | K107: =K103*K105 -> 1.648906667 | L107: 0.8882200889 | M107: 0.6025601325 | N107: 0.557157182
B110: =MAX($B$10:$B109)+1 -> 4 | C110: =F22 -> Tax Paid
C112: =C110 -> Tax Paid
D114: Assumptions
E116: Tax is assumed to be paid on a "cash tax" basis with no delays in payment.
E118: Tax Rate | G118: % | H118: 0.3
D121: Referred Values / Calculations
E123: =F19 -> Cash Receipts | G123: =Currency -> $'000 | H123: =ROW(I19) -> 19 | J123: =J19 -> 80 | K123: =K19 -> 90 | L123: 100 | M123: 110 | N123: 120
E124: =F20 -> Cash Payments | G124: =Currency -> $'000 | H124: =ROW(I20) -> 20 | J124: =J20 -> -43 | K124: =K20 -> -49 | L124: -57 | M124: -64 | N124: -69
E126: Earnings Before Interest, Tax, Depreciation and Amortisation | G126: =Currency -> $'000 | J126: =SUM(J123:J124) -> 37 | K126: =SUM(K123:K124) -> 41 | L126: 43 | M126: 46 | N126: 51
E128: =E72 -> Depreciation | G128: =Currency -> $'000 | H128: =ROW(I72) -> 72 | J128: =-J72 -> -7.5 | K128: =-K72 -> -10 | L128: -13.75 | M128: -20 | N128: -20
E130: Earnings Before Interest and Tax | G130: =Currency -> $'000 | J130: =J126+J128 -> 29.5 | K130: =K126+K128 -> 31 | L130: 29.25 | M130: 26 | N130: 31
E132: =E107 -> Interest Received | G132: =Currency -> $'000 | H132: =ROW(I107) -> 107 | J132: =J107 -> 0.14 | K132: =K107 -> 1.648906667 | L132: 0.8882200889 | M132: 0.6025601325 | N132: 0.557157182
E133: =F21 -> Interest Paid | G133: =Currency -> $'000 | H133: =ROW(I21) -> 21 | J133: =J21 -> -4.8 | K133: =K21 -> -1.95808 | L133: -1.161395413 | M133: -0.4372089756 | N133: 0
E135: Net Profit Before Tax | G135: =Currency -> $'000 | J135: =SUM(J130,J132:J133) -> 24.84 | K135: =SUM(K130,K132:K133) -> 30.69082667 | L135: 28.97682468 | M135: 26.16535116 | N135: 31.55715718
E137: Tax (Expense) / Credit | G137: =Currency -> $'000 | J137: =-J135*$H$118 -> -7.452 | K137: =-K135*$H$118 -> -9.207248 | L137: -8.693047403 | M137: -7.849605347 | N137: -9.467147155
E139: Net Profit After Tax | G139: =Currency -> $'000 | J139: =J135+J137 -> 17.388 | K139: =K135+K137 -> 21.48357867 | L139: 20.28377727 | M139: 18.31574581 | N139: 22.09001003
D142: =C110 -> Tax Paid
E144: Opening Balance | G144: =Currency -> $'000 | J144: =I147 -> 0 | K144: =J147 -> 0 | L144: 0 | M144: 0 | N144: 0
E145: Tax Expense / (Credit) | G145: =Currency -> $'000 | H145: =ROW(I137) -> 137 | J145: =-J137 -> 7.452 | K145: =-K137 -> 9.207248 | L145: 8.693047403 | M145: 7.849605347 | N145: 9.467147155
E146: =C110 -> Tax Paid | G146: =Currency -> $'000 | J146: =-MAX(SUM(J144:J145),) -> -7.452 | K146: =-MAX(SUM(K144:K145),) -> -9.207248 | L146: -8.693047403 | M146: -7.849605347 | N146: -9.467147155
E147: Closing Balance | G147: =Currency -> $'000 | J147: =SUM(J144:J146) -> 0 | K147: =SUM(K144:K146) -> 0 | L147: 0 | M147: 0 | N147: 0
E149: =C110 -> Tax Paid | G149: =Currency -> $'000 | H149: =ROW(I146) -> 146 | J149: =-J146 -> 7.452 | K149: =-K146 -> 9.207248 | L149: 8.693047403 | M149: 7.849605347 | N149: 9.467147155
B152: =MAX($B$10:$B151)+1 -> 5 | C152: Tax Paid for CFADS (DSCR)
C154: =C152 -> Tax Paid for CFADS (DSCR)
D156: Referred Values
E158: =E118 -> Tax Rate | G158: % | H158: =ROW(I118) -> 118 | I158: =H118 -> 0.3
E160: =E130 -> Earnings Before Interest and Tax | G160: =Currency -> $'000 | H160: =ROW(I130) -> 130 | J160: =J130 -> 29.5 | K160: =K130 -> 31 | L160: 29.25 | M160: 26 | N160: 31
E161: =E132 -> Interest Received | G161: =Currency -> $'000 | H161: =ROW(I132) -> 132 | J161: =J132 -> 0.14 | K161: =K132 -> 1.648906667 | L161: 0.8882200889 | M161: 0.6025601325 | N161: 0.557157182
E163: Net Profit Before Interest Paid and Tax | G163: =Currency -> $'000 | J163: =SUM(J160:J161) -> 29.64 | K163: =SUM(K160:K161) -> 32.64890667 | L163: 30.13822009 | M163: 26.60256013 | N163: 31.55715718
E165: =E137&" for CFADS" -> Tax (Expense) / Credit for CFADS | G165: =Currency -> $'000 | J165: =-J163*$I$158 -> -8.892 | K165: =-K163*$I$158 -> -9.794672 | L165: -9.041466027 | M165: -7.98076804 | N165: -9.467147155
D168: =E165 -> Tax (Expense) / Credit for CFADS
E170: =E144 -> Opening Balance | G170: =Currency -> $'000 | J170: =I175 -> 0 | K170: =J175 -> 0 | L170: 0 | M170: 0 | N170: 0
E171: =E145&" for CFADS" -> Tax Expense / (Credit) for CFADS | G171: $'000 | H171: =ROW(I165) -> 165 | J171: =-J165 -> 8.892 | K171: =-K165 -> 9.794672 | L171: 9.041466027 | M171: 7.98076804 | N171: 9.467147155
E172: =E146&" for CFADS" -> Tax Paid for CFADS | G172: $'000 | J172: =-MAX(SUM(J170:J171),) -> -8.892 | K172: =-MAX(SUM(K170:K171),) -> -9.794672 | L172: -9.041466027 | M172: -7.98076804 | N172: -9.467147155
E173: =E145&" (balance)" -> Tax Expense / (Credit) (balance) | G173: $'000 | H173: =ROW(I145) -> 145 | J173: =J145-J171 -> -1.44 | K173: =K145-K171 -> -0.587424 | L173: -0.348418624 | M173: -0.1311626927 | N173: 0
E174: =E146&" (balance)" -> Tax Paid (balance) | G174: $'000 | H174: =ROW(I147) -> 147 | J174: =J147-SUM(J170:J173) -> 1.44 | K174: =K147-SUM(K170:K173) -> 0.587424 | L174: 0.348418624 | M174: 0.1311626927 | N174: 0
E175: Closing Balance | G175: $'000 | J175: =SUM(J170:J174) -> 0 | K175: =SUM(K170:K174) -> 0 | L175: 0 | M175: 0 | N175: 0
E177: =C152 -> Tax Paid for CFADS (DSCR) | G177: =Currency -> $'000 | H177: =ROW(I172) -> 172 | J177: =-J172 -> 8.892 | K177: =-K172 -> 9.794672 | L177: 9.041466027 | M177: 7.98076804 | N177: 9.467147155
B180: =MAX($B$10:$B179)+1 -> 6 | C180: Tax Paid for CFADS (PLCR and LLCR)
C182: =C180 -> Tax Paid for CFADS (PLCR and LLCR)
D184: Referred Values
E186: =E146 -> Tax Paid | G186: % | H186: =ROW(I118) -> 118 | I186: =H118 -> 0.3
E188: =E158 -> Tax Rate | G188: =Currency -> $'000 | H188: =ROW(I130) -> 130 | J188: =J130 -> 29.5 | K188: =K130 -> 31 | L188: 29.25 | M188: 26 | N188: 31
E189: =E132 -> Interest Received | G189: =Currency -> $'000
E191: Net Profit Before Interest Paid and Tax | G191: =Currency -> $'000 | J191: =SUM(J188:J189) -> 29.5 | K191: =SUM(K188:K189) -> 31 | L191: 29.25 | M191: 26 | N191: 31
E193: =E165&" for CFADS" -> Tax (Expense) / Credit for CFADS for CFADS | G193: =Currency -> $'000 | J193: =-J191*$I$158 -> -8.85 | K193: =-K191*$I$158 -> -9.3 | L193: -8.775 | M193: -7.8 | N193: -9.3
D196: =E193 -> Tax (Expense) / Credit for CFADS for CFADS
E198: =E172 -> Tax Paid for CFADS | G198: =Currency -> $'000 | J198: =I203 -> 0 | K198: =J203 -> 0 | L198: =K203 -> 0 | M198: =L203 -> 0 | N198: =M203 -> 0
E199: =E173&" for CFADS" -> Tax Expense / (Credit) (balance) for CFADS | G199: $'000 | H199: =ROW(I193) -> 193 | J199: =-J193 -> 8.85 | K199: =-K193 -> 9.3 | L199: 8.775 | M199: 7.8 | N199: 9.3
E200: =E174&" for CFADS" -> Tax Paid (balance) for CFADS | G200: $'000 | J200: =-MAX(SUM(J198:J199),) -> -8.85 | K200: =-MAX(SUM(K198:K199),) -> -9.3 | L200: -8.775 | M200: -7.8 | N200: -9.3
E201: =E173&" (balance)" -> Tax Expense / (Credit) (balance) (balance) | G201: $'000
E202: =E174&" (balance)" -> Tax Paid (balance) (balance) | G202: $'000
E203: Closing Balance | G203: $'000 | J203: =SUM(J198:J202) -> 0 | K203: =SUM(K198:K202) -> 0 | L203: 0 | M203: 0 | N203: 0
E205: =C180 -> Tax Paid for CFADS (PLCR and LLCR) | G205: =Currency -> $'000 | H205: =ROW(I200) -> 200 | J205: =-J200 -> 8.85 | K205: =-K200 -> 9.3 | L205: 8.775 | M205: 7.8 | N205: 9.3
B208: =MAX($B$10:$B207)+1 -> 7 | C208: Cash Flow Available for Debt Servicing (CFADS)
C210: =C208 -> Cash Flow Available for Debt Servicing (CFADS)
D212: Assumptions
E214: Not all cashflows are included. Opening balances are traditionally ignored. Repayments / later items in cash cascade are excluded.
D217: Referred Values
E219: =E17 -> Operating Activities
F221: =F19 -> Cash Receipts | G221: =Currency -> $'000 | H221: =ROW(I19) -> 19 | J221: =J19 -> 80 | K221: 90 | L221: 100 | M221: 110 | N221: 120
F222: =F20 -> Cash Payments | G222: =Currency -> $'000 | H222: =ROW(I20) -> 20 | J222: -43 | K222: -49 | L222: -57 | M222: -64 | N222: -69
F223: =F22 -> Tax Paid | G223: =Currency -> $'000 | H223: =ROW(I177) -> 177 | J223: =-IF(OR($H$490=$E$497,$H$490=""),J177,J205) -> -8.892 | K223: =-IF(OR($H$490=$E$497,$H$490=""),K177,K205) -> -9.794672 | L223: =-IF(OR($H$490=$E$497,$H$490=""),L177,L205) -> -9.041466027 | M223: =-IF(OR($H$490=$E$497,$H$490=""),M177,M205) -> -7.98076804 | N223: =-IF(OR($H$490=$E$497,$H$490=""),N177,N205) -> -9.467147155
F225: =F24 -> Net Cashflows from Operating Activities | G225: =Currency -> $'000 | J225: =SUM(J221:J223) -> 28.108 | K225: =SUM(K221:K223) -> 31.205328 | L225: 33.95853397 | M225: 38.01923196 | N225: 41.53285285
E228: =E27 -> Investing Activities
F230: =F29 -> Interest Received | G230: =Currency -> $'000 | H230: =ROW(I29) -> 29 | J230: =IF(OR($H$490=$E$497,$H$490=""),J29,) -> 0.14 | K230: =IF(OR($H$490=$E$497,$H$490=""),K29,) -> 1.648906667 | L230: =IF(OR($H$490=$E$497,$H$490=""),L29,) -> 0.8882200889 | M230: =IF(OR($H$490=$E$497,$H$490=""),M29,) -> 0.6025601325 | N230: =IF(OR($H$490=$E$497,$H$490=""),N29,) -> 0.557157182
F231: =F30 -> Net Capital Expenditure | G231: =Currency -> $'000 | H231: =ROW(I30) -> 30 | J231: =J30 -> -30 | K231: =K30 -> -10 | L231: =L30 -> -15 | M231: =M30 -> -25 | N231: =N30 -> -30
F233: =F32 -> Net Cashflows from Investing Activities | G233: =Currency -> $'000 | J233: =SUM(J230:J231) -> -29.86 | K233: =SUM(K230:K231) -> -8.351093333 | L233: -14.11177991 | M233: -24.39743987 | N233: -29.44284282
E236: =E35 -> Financing Activities
F238: =F37 -> Debt Drawdowns | G238: =Currency -> $'000 | H238: =ROW(I37) -> 37 | J238: =J37 -> 80 | K238: =K37 -> 0 | L238: =L37 -> 0 | M238: =M37 -> 0 | N238: =N37 -> 0
F239: =F39 -> Equity Issuances | G239: =Currency -> $'000 | H239: =ROW(I39) -> 39 | I239: Include | J239: =J39*($I239=Include) -> 0 | K239: =K39*($I239=Include) -> 0 | L239: =L39*($I239=Include) -> 0 | M239: =M39*($I239=Include) -> 0 | N239: =N39*($I239=Include) -> 0
F241: =F43 -> Net Cashflows from Financing Activities | G241: =Currency -> $'000 | J241: =SUM(J238:J239) -> 80 | K241: =SUM(K238:K239) -> 0 | L241: 0 | M241: 0 | N241: 0
E244: =C208 -> Cash Flow Available for Debt Servicing (CFADS) | G244: =Currency -> $'000 | J244: =J225+J233+J241 -> 78.248 | K244: =K225+K233+K241 -> 22.85423467 | L244: 19.84675406 | M244: 13.62179209 | N244: 12.09001003
B247: =MAX($B$10:$B246)+1 -> 8 | C247: Debt Sculpting: DSCR Basis
C249: Assumptions
D251: Key Assumption
E253: We assume debt is repaid at the end of each period, i.e. interest is calculated on the opening balance only.
D256: Interest Rate
E258: =D256 -> Interest Rate | G258: % | H258: 0.06 | J258: =$H258 -> 0.06 | K258: =$H258 -> 0.06 | L258: 0.06 | M258: 0.06 | N258: 0.06
D261: Debt Service Coverage Ratio (DSCR)
E263: Target DSCR | G263: x | J263: 1.5 | K263: 1.5 | L263: 1.5 | M263: 1.5 | N263: 1.5
C266: Referred Values
D268: Opening Debt Balance
E270: =D268 -> Opening Debt Balance | G270: =Currency -> $'000 | H270: =ROW(I37) -> 37 | J270: =J37 -> 80
D273: Target Debt Service
E275: =E244 -> Cash Flow Available for Debt Servicing (CFADS) | G275: =Currency -> $'000 | H275: =ROW(I244) -> 244 | J275: =J244 -> 78.248 | K275: =K244 -> 22.85423467 | L275: 19.84675406 | M275: 13.62179209 | N275: 12.09001003
E277: =E263 -> Target DSCR | G277: x | H277: =ROW(I263) -> 263 | J277: =J263 -> 1.5 | K277: =K263 -> 1.5 | L277: 1.5 | M277: 1.5 | N277: 1.5
E279: =D273&" (Principal and Interest)" -> Target Debt Service (Principal and Interest) | G279: =Currency -> $'000 | J279: =MAX(IF(J277,J275/J277,),) -> 52.16533333 | K279: =MAX(IF(K277,K275/K277,),) -> 15.23615644 | L279: 13.23116937 | M279: 9.081194728 | N279: 8.060006685
C282: Calculations
D284: Debt Control Account
E286: Opening Debt | G286: =Currency -> $'000 | J286: =IF(J$9=1,$J$270,I289) -> 80 | K286: =IF(K$9=1,$J$270,J289) -> 32.63466667 | L286: =IF(L$9=1,$J$270,K289) -> 19.35659022 | M286: =IF(M$9=1,$J$270,L289) -> 7.286816261 | N286: =IF(N$9=1,$J$270,M289) -> 0
E287: =F37 -> Debt Drawdowns | G287: =Currency -> $'000 | J287: =J37-J270 -> 0 | K287: =K37-K270 -> 0 | L287: =L37-L270 -> 0 | M287: =M37-M270 -> 0 | N287: =N37-N270 -> 0
E288: =F38 -> Debt Repayments | G288: =Currency -> $'000 | J288: =-J312 -> -47.36533333 | K288: =-K312 -> -13.27807644 | L288: -12.06977396 | M288: -7.286816261 | N288: 0
E289: Closing Debt | G289: =Currency -> $'000 | J289: =SUM(J286:J288) -> 32.63466667 | K289: =SUM(K286:K288) -> 19.35659022 | L289: 7.286816261 | M289: 0 | N289: 0
D292: =F21 -> Interest Paid
E294: =E286 -> Opening Debt | G294: =Currency -> $'000 | H294: =ROW(I286) -> 286 | J294: =J286 -> 80 | K294: =K286 -> 32.63466667 | L294: 19.35659022 | M294: 7.286816261 | N294: 0
E295: =E258 -> Interest Rate | G295: % | H295: =ROW(I258) -> 258 | J295: =J258 -> 0.06 | K295: =K258 -> 0.06 | L295: 0.06 | M295: 0.06 | N295: 0.06
E297: =D292 -> Interest Paid | G297: =Currency -> $'000 | J297: =MAX(J294*J295,) -> 4.8 | K297: =MAX(K294*K295,) -> 1.95808 | L297: 1.161395413 | M297: 0.4372089756 | N297: 0
D300: Principal Paid
E302: =E279 -> Target Debt Service (Principal and Interest) | G302: =Currency -> $'000 | H302: =ROW(I279) -> 279 | J302: =J279 -> 52.16533333 | K302: =K279 -> 15.23615644 | L302: 13.23116937 | M302: 9.081194728 | N302: 8.060006685
E303: =E297 -> Interest Paid | G303: =Currency -> $'000 | H303: =ROW(I297) -> 297 | J303: =-J297 -> -4.8 | K303: =-K297 -> -1.95808 | L303: -1.161395413 | M303: -0.4372089756 | N303: 0
E304: ="Unrestricted "&D300 -> Unrestricted Principal Paid | G304: =Currency -> $'000 | J304: =MAX(SUM(J302:J303),) -> 47.36533333 | K304: =MAX(SUM(K302:K303),) -> 13.27807644 | L304: 12.06977396 | M304: 8.643985753 | N304: 8.060006685
E306: =E275 -> Cash Flow Available for Debt Servicing (CFADS) | G306: =Currency -> $'000 | H306: =ROW(I244) -> 244 | J306: =J244 -> 78.248 | K306: =K244 -> 22.85423467 | L306: 19.84675406 | M306: 13.62179209 | N306: 12.09001003
E307: =E303 -> Interest Paid | G307: =Currency -> $'000 | H307: =ROW(I297) -> 297 | J307: =-J297 -> -4.8 | K307: =-K297 -> -1.95808 | L307: -1.161395413 | M307: -0.4372089756 | N307: 0
E308: Cash Flow Available for Principal | G308: =Currency -> $'000 | J308: =MAX(SUM(J306:J307),) -> 73.448 | K308: =MAX(SUM(K306:K307),) -> 20.89615467 | L308: =MAX(SUM(L306:L307),) -> 18.68535865 | M308: =MAX(SUM(M306:M307),) -> 13.18458312 | N308: =MAX(SUM(N306:N307),) -> 12.09001003
E310: =E294 -> Opening Debt | G310: =Currency -> $'000 | H310: =ROW(I286) -> 286 | J310: =J286 -> 80 | K310: =K286 -> 32.63466667 | L310: 19.35659022 | M310: 7.286816261 | N310: 0
E312: =D300 -> Principal Paid | G312: =Currency -> $'000 | J312: =MIN(J304,J308,J310) -> 47.36533333 | K312: =MIN(K304,K308,K310) -> 13.27807644 | L312: 12.06977396 | M312: 7.286816261 | N312: 0
B315: =MAX($B$10:$B314)+1 -> 9 | C315: Debt Sculpting: PLCR Basis
C317: Assumptions
D319: Key Assumption
E321: We assume project life ends at the end of the modelling periods.
D324: Discount Rate
E326: =E258 -> Interest Rate | G326: % | H326: =ROW(I258) -> 258 | I326: =H258 -> 0.06
E328: =E118 -> Tax Rate | G328: % | H328: =ROW(I118) -> 118 | I328: =H118 -> 0.3
E330: =D324 -> Discount Rate | G330: % | I330: =I326*(1-I328) -> 0.042
D333: Project Life Coverage Ratio (PLCR)
E335: Target PLCR | G335: x | J335: 1.75 | K335: 1.75 | L335: 1.75 | M335: 1.75 | N335: 1.75
C338: Referred Values
D340: =D256 -> Interest Rate
E342: =D340 -> Interest Rate | G342: % | H342: =ROW(I258) -> 258 | J342: =J258 -> 0.06 | K342: =K258 -> 0.06 | L342: =L258 -> 0.06 | M342: =M258 -> 0.06 | N342: =N258 -> 0.06
D345: Opening Debt Balance
E347: =D345 -> Opening Debt Balance | G347: =Currency -> $'000 | H347: =ROW(I37) -> 37 | J347: =J37 -> 80
D350: Target Debt Service
E352: Opening Debt | G352: =Currency -> $'000 | H352: =ROW(I367) -> 367 | J352: =J367 -> 80 | K352: =K367 -> 35.71869572 | L352: 24.15931828 | M352: 13.83300732 | N352: 6.630112436
E354: =E244 -> Cash Flow Available for Debt Servicing (CFADS) | G354: =Currency -> $'000 | H354: =ROW(I244) -> 244 | J354: =J244 -> 78.248 | K354: =K244 -> 22.85423467 | L354: =L244 -> 19.84675406 | M354: =M244 -> 13.62179209 | N354: =N244 -> 12.09001003
E356: NPV of CFADS (forward looking) | G356: =Currency -> $'000 | H356: =I330 -> 0.042 | J356: =(K354+K356)/(1+$I$330) -> 62.50771752 | K356: =(L354+L356)/(1+$I$330) -> 42.27880699 | L356: 24.20776282 | M356: 11.60269676 | N356: 0
E358: =E335 -> Target PLCR | G358: x | H358: =ROW(I335) -> 335 | J358: =J335 -> 1.75 | K358: =K335 -> 1.75 | L358: =L335 -> 1.75 | M358: =M335 -> 1.75 | N358: =N335 -> 1.75
E360: Target Debt Balance | G360: =Currency -> $'000 | J360: =IF(J$9=MAX($9:$9),,IF(J356<=0,J352,IF(J358,J356/J358,))) -> 35.71869572 | K360: =IF(K$9=MAX($9:$9),,IF(K356<=0,K352,IF(K358,K356/K358,))) -> 24.15931828 | L360: 13.83300732 | M360: 6.630112436 | N360: 0
C363: Calculations
D365: Debt Control Account
E367: Opening Debt | G367: =Currency -> $'000 | J367: =IF(J$9=1,$J$347,I370) -> 80 | K367: =IF(K$9=1,$J$347,J370) -> 35.71869572 | L367: =IF(L$9=1,$J$347,K370) -> 24.15931828 | M367: =IF(M$9=1,$J$347,L370) -> 13.83300732 | N367: =IF(N$9=1,$J$347,M370) -> 6.630112436
E368: =F37 -> Debt Drawdowns | G368: =Currency -> $'000 | J368: =J37-J347 -> 0 | K368: =K37-K347 -> 0 | L368: =L37-L347 -> 0 | M368: =M37-M347 -> 0 | N368: =N37-N347 -> 0
E369: =F38 -> Debt Repayments | G369: =Currency -> $'000 | H369: =ROW(I395) -> 395 | J369: =-J395 -> -44.28130428 | K369: =-K395 -> -11.55937745 | L369: -10.32631095 | M369: -7.202894888 | N369: -6.630112436
E370: Closing Debt | G370: =Currency -> $'000 | J370: =SUM(J367:J369) -> 35.71869572 | K370: =SUM(K367:K369) -> 24.15931828 | L370: 13.83300732 | M370: 6.630112436 | N370: 0
E372: Check: | G372: [1,0] | I372: =MIN(SUM(J372:N372),1) -> 0 | J372: =($H$490=$E$498)*(J$9=MAX($9:$9))*(J370<>0) -> 0 | K372: =($H$490=$E$498)*(K$9=MAX($9:$9))*(K370<>0) -> 0 | L372: =($H$490=$E$498)*(L$9=MAX($9:$9))*(L370<>0) -> 0 | M372: =($H$490=$E$498)*(M$9=MAX($9:$9))*(M370<>0) -> 0 | N372: =($H$490=$E$498)*(N$9=MAX($9:$9))*(N370<>0) -> 0
D375: =F21 -> Interest Paid
E377: =E367 -> Opening Debt | G377: =Currency -> $'000 | H377: =ROW(I367) -> 367 | J377: =J367 -> 80 | K377: =K367 -> 35.71869572 | L377: =L367 -> 24.15931828 | M377: =M367 -> 13.83300732 | N377: =N367 -> 6.630112436
E378: =E342 -> Interest Rate | G378: % | H378: =ROW(I342) -> 342 | J378: =J342 -> 0.06 | K378: =K342 -> 0.06 | L378: =L342 -> 0.06 | M378: =M342 -> 0.06 | N378: =N342 -> 0.06
... 68 more rows

Sheet Lookup Data
A1: =IF(ISERROR(RIGHT(CELL("filename",A1),LEN(CELL("filename",A1))-FIND("]",CELL("filename",A1)))), "", RIGHT(CELL("filename",A1),LEN(CELL("filename",A1))-FIND("]",CELL("filename",A1)))) -> Lookup Data
A2: =Model_Name -> SP Debt Sculpting Example.xlsm
A3: Navigator
B4: Error Checks: | G4: =Overall_Error_Check -> 0
B6: =MAX($B$5:$B5)+1 -> 1 | C6: Include or Exclude
C8: =$A$1 -> Lookup Data
F10: =C6 -> Include or Exclude
F11: Include | H11: LU_Include_or_Exclude
F12: Exclude

Sheet Timing
A1: =IF(ISERROR(RIGHT(CELL("filename",A1),LEN(CELL("filename",A1))-FIND("]",CELL("filename",A1)))), "", RIGHT(CELL("filename",A1),LEN(CELL("filename",A1))-FIND("]",CELL("filename",A1)))) -> Timing
A2: =Model_Name -> SP Debt Sculpting Example.xlsm
A3: Navigator
B4: Error Checks: | F4: =Overall_Error_Check -> 0
J5: =J$7 -> 2018-12-31 | K5: =K$7 -> 2019-12-31 | L5: =L$7 -> 2020-12-31 | M5: =M$7 -> 2021-12-31 | N5: =N$7 -> 2022-12-31
C6: Start Date | J6: =IF(J$9=1,Model_Start_Date,I$7+1) -> 2018-01-01 | K6: =IF(K$9=1,Model_Start_Date,J$7+1) -> 2019-01-01 | L6: =IF(L$9=1,Model_Start_Date,K$7+1) -> 2020-01-01 | M6: =IF(M$9=1,Model_Start_Date,L$7+1) -> 2021-01-01 | N6: =IF(N$9=1,Model_Start_Date,M$7+1) -> 2022-01-01
C7: End Date | J7: =EOMONTH(J$6,MOD(Periodicity+Reporting_Month_Factor-MONTH(J$6),Periodicity)) -> 2018-12-31 | K7: =EOMONTH(K$6,MOD(Periodicity+Reporting_Month_Factor-MONTH(K$6),Periodicity)) -> 2019-12-31 | L7: =EOMONTH(L$6,MOD(Periodicity+Reporting_Month_Factor-MONTH(L$6),Periodicity)) -> 2020-12-31 | M7: =EOMONTH(M$6,MOD(Periodicity+Reporting_Month_Factor-MONTH(M$6),Periodicity)) -> 2021-12-31 | N7: =EOMONTH(N$6,MOD(Periodicity+Reporting_Month_Factor-MONTH(N$6),Periodicity)) -> 2022-12-31
C8: Number of Days | J8: =J7-J6+1 -> 365 | K8: =K7-K6+1 -> 365 | L8: 366 | M8: 365 | N8: 365
C9: Counter | J9: =N(I$9)+1 -> 1 | K9: =N(J$9)+1 -> 2 | L9: 3 | M9: 4 | N9: 5
B11: =MAX($B$10:$B10)+1 -> 1 | C11: Timing Assumptions
C13: Data (do not change once modelling has commenced)
D15: Model Start Date | H15: =DATE(YEAR(TODAY())+1,1,1) -> 2018-01-01
D17: Number of Months in a Full Period | H17: 12
D19: Example Reporting Month | H19: 12 | I19: ="e.g. "&TEXT(DATE(YEAR(Model_Start_Date)+IF(Example_Reporting_Month<MONTH(Model_Start_Date),1,0),Example_Reporting_Month+1,1)-1,"dd-Mmm-yy") -> e.g. 31-Dec-18
D21: Reporting Month Factor | H21: =MOD(Example_Reporting_Month-1,Periodicity)+1 -> 12
D23: Months per Year | H23: 12

Sheet Error Checks
A1: =IF(ISERROR(RIGHT(CELL("filename",A1),LEN(CELL("filename",A1))-FIND("]",CELL("filename",A1)))), "", RIGHT(CELL("filename",A1),LEN(CELL("filename",A1))-FIND("]",CELL("filename",A1)))) -> Error Checks
A2: =Model_Name -> SP Debt Sculpting Example.xlsm
A3: Navigator
B4: Error Checks: | F4: =Overall_Error_Check -> 0
B6: =MAX($B$5:$B5)+1 -> 1 | C6: Error Checks
C8: Summary of Errors
D10: Assumptions
E12: PLCR selected: Loan repaid in time | I12: =HL_PLCR_Loan_Repaid_in_Time -> 0
E13: LLCR selected: Loan repaid in time | I13: =HL_LLCR_Loan_Repaid_in_Time -> 0
E17: =C8 -> Summary of Errors | I17: =MIN(1,SUM(I11:I15)) -> 0

Sheet Change Log
A1: =IF(ISERROR(RIGHT(CELL("filename",A1),LEN(CELL("filename",A1))-FIND("]",CELL("filename",A1)))), "", RIGHT(CELL("filename",A1),LEN(CELL("filename",A1))-FIND("]",CELL("filename",A1)))) -> Change Log
A2: =Model_Name -> SP Debt Sculpting Example.xlsm
A3: Navigator
B4: Error Checks: | F4: =Overall_Error_Check -> 0
B6: =MAX($B$5:$B5)+1 -> 1 | C6: =A1 -> Change Log
C8: Summary
F10: Date | G10: Model Version | H10: Details of change | I10: Worksheet Reference | J10: Row, column, cell reference | K10: Author
